bitfinex-derivatives/quotes_BNBF0:USTF0_20251225
["timestamp","ask_amount","ask_price","bid_price","bid_amount"]
[1766658313641,0.8896902,839.74,838.8,1.1915611]
[1766658316846,0.8896902,839.38,838.43,1.1915611]
[1766658317146,0.8896902,839.4,838.4,1.1915611]
[1766658317543,0.8896902,839.41,838.41,1.1915611]
[1766658317747,0.8896902,839.46,838.46,1.1915611]
[1766658318143,0.8896902,839.48,838.44,1.1915611]
[1766658319244,0.20728043,839.77,838.43,1.1915611]
[1766658319245,0.8896902,839.49,838.43,1.1915611]
[1766658320249,0.8896902,839.49,838.42,1.1915611]
[1766658321245,0.8896902,839.5,838.41,1.1915611]
[1766658322247,0.8896902,839.51,838.41,1.1915611]
[1766658323151,0.8896902,839.52,838.4,1.1915611]
[1766658324252,0.8896902,839.52,838.39,1.1915611]
[1766658325155,0.8896902,839.54,838.41,1.1915611]
[1766658325351,0.8896902,839.54,837.73,0.20731253]
[1766658325352,0.8896902,839.54,838.4,1.1915611]
[1766658326150,0.8896902,839.55,838.4,1.1915611]
[1766658327355,0.8896902,839.55,838.39,1.1915611]
[1766658328257,0.8896902,839.56,838.39,1.1915611]
[1766658330255,0.8896902,839.56,838.38,1.1915611]
[1766658331254,0.8896902,839.57,838.38,1.1915611]
[1766658333154,0.8896902,839.57,838.37,1.1915611]
[1766658334257,0.8896902,839.58,838.37,1.1915611]
[1766658340160,0.8896902,839.58,838.36,1.1915611]
[1766658341165,0.8896902,839.58,838.37,1.1915611]
[1766658344566,0.8896902,839.58,838.38,1.1915611]
[1766658347166,0.8896902,839.58,838.39,1.1915611]
[1766658348267,0.8896902,839.57,838.39,1.1915611]
[1766658350174,0.8896902,839.57,838.4,1.1915611]
[1766658351274,0.8896902,839.56,838.4,1.1915611]
[1766658352375,0.8896902,839.55,838.41,1.1915611]
[1766658353374,0.8896902,839.55,838.42,1.1915611]
[1766658354172,0.8896902,839.54,838.42,1.1915611]
[1766658355177,0.8896902,839.53,838.43,1.1915611]
[1766658356277,0.8896902,839.52,838.44,1.1915611]
[1766658357081,0.8896902,839.53,838.44,1.1915611]
[1766658357381,0.8896902,839.51,838.45,1.1915611]
[1766658358177,0.8896902,839.5,838.46,1.1915611]
[1766658359182,0.8896902,839.49,838.48,1.1915611]
[1766658360283,0.8896902,839.47,838.5,1.1915611]
[1766658361383,0.8896902,839.43,838.54,1.1915611]
[1766658362188,0.8896902,839.42,838.55,1.1915611]
[1766658369293,0.8896902,839.41,838.55,1.1915611]
[1766658377598,0.8896902,839.41,838.56,1.1915611]
[1766658384512,0.8896902,839.46,838.61,1.1915611]
[1766658385304,0.8896902,839.47,838.6,1.1915611]
[1766658387205,0.8896902,839.48,838.59,1.1915611]
[1766658392309,0.8896902,839.48,838.43,1.78497909]
[1766658392310,0.8896902,839.48,838.58,1.1915611]
[1766658393208,0.8896902,839.49,838.58,1.1915611]
[1766658421232,0.8896902,839.48,838.58,1.1915611]
[1766658422329,0.8896902,839.48,838.59,1.1915611]
[1766658427133,0.8896902,839.48,838.6,1.1915611]
[1766658427336,0.8896902,839.47,838.6,1.1915611]
[1766658429239,0.8896902,839.46,838.61,1.1915611]
[1766658437445,0.8896902,839.45,838.6,1.1915611]
[1766658438040,0.8896902,839.5,838.65,1.1915611]
[1766658438344,0.8896902,839.56,838.7,1.1915611]
[1766658439347,0.8896902,839.58,838.68,1.1915611]
[1766658439544,0.8896902,839.56,838.66,1.1915611]
[1766658441148,0.8896902,839.56,838.65,1.1915611]
[1766658442144,0.8896902,839.57,838.65,1.1915611]
[1766658445253,0.8896902,839.58,838.64,1.1915611]
[1766658451158,0.8896902,839.58,838.63,1.1915611]
[1766658452353,0.8896902,839.59,838.63,1.1915611]
[1766658462469,0.8896902,839.57,838.61,1.1915611]
[1766658466773,0.8896902,839.56,838.61,1.1915611]
[1766658467173,0.8896902,839.56,838.62,1.1915611]
[1766658467570,0.8896902,839.56,838.61,1.1915611]
[1766658471176,0.8896902,839.55,838.62,1.1915611]
[1766658477180,0.8896902,839.54,838.63,1.1915611]
[1766658480084,0.8896902,839.54,838.64,1.1915611]
[1766658481183,0.8896902,839.53,838.64,1.1915611]
[1766658482285,0.8896902,839.52,838.64,1.1915611]
[1766658483186,0.8896902,839.52,838.65,1.1915611]
[1766658505209,0.8896902,839.51,838.65,1.1915611]
[1766658506110,0.8896902,839.51,838.66,1.1915611]
[1766658540541,0.8896902,839.53,838.68,1.1915611]
[1766658541443,1.09701323,839.54,838.68,1.1915611]
[1766658547445,1.09701323,839.54,838.67,1.1915611]
[1766658550249,0.20732303,839.54,838.67,1.1915611]
[1766658551446,0.8896902,839.57,838.69,1.1915611]
[1766658554652,0.8896902,839.59,838.71,1.1915611]
[1766658555453,0.8896902,839.59,838.7,1.1915611]
[1766658560457,0.8896902,839.6,838.69,1.1915611]
[1766658580380,0.8896902,839.6,838.7,1.1915611]
[1766658581281,0.8896902,839.59,838.7,1.1915611]
[1766658591387,0.8896902,839.58,838.71,1.1915611]
[1766658594793,0.20730265,839.68,838.71,1.1915611]
[1766658595091,0.89023524,839.58,838.71,1.1915611]
[1766658596491,0.89023524,839.58,838.72,1.1915611]
[1766658597394,0.89023524,839.57,838.72,1.1915611]
[1766658639422,0.89023524,839.51,838.65,1.1915611]
[1766658640423,0.89023524,839.52,838.64,1.1915611]
[1766658640624,0.89023524,839.4,838.52,1.1915611]
[1766658641322,0.89023524,839.43,838.5,1.1915611]
[1766658641724,0.89023524,839.4,838.47,1.1915611]
[1766658642526,0.89023524,839.41,838.45,1.1915611]
[1766658643424,0.89023524,839.43,838.44,1.1915611]
[1766658644428,0.89023524,839.44,838.43,1.1915611]
[1766658645323,0.89023524,839.44,838.42,1.1915611]
[1766658646522,0.89023524,839.45,838.42,1.1915611]
[1766658647428,0.89023524,839.46,838.41,1.1915611]
[1766658647825,0.89023524,839.45,838.41,1.1915611]
[1766658648324,0.89023524,839.46,838.4,1.1915611]
[1766658649729,0.89023524,839.38,838.32,1.1915611]
[1766658650328,0.89023524,839.39,838.3,1.1915611]
[1766658651429,0.89023524,839.39,838.29,1.1915611]
[1766658652229,0.89023524,839.41,838.31,1.1915611]
[1766658652432,0.89023524,839.42,838.31,1.1915611]
[1766658653326,0.89023524,839.43,838.3,1.1915611]
[1766658655532,0.89023524,839.44,838.29,1.1915611]
[1766658657029,0.89023524,839.42,838.27,1.1915611]
[1766658657229,0.89023524,839.42,838.26,1.1915611]
[1766658658334,0.89023524,839.43,838.26,1.1915611]
[1766658660536,1.18826526,839.58,838.26,1.1915611]
[1766658660830,0.88550768,839.43,838.26,1.1915611]
[1766658661336,0.88550768,839.43,838.25,1.1915611]
[1766658663537,0.88550768,839.44,838.25,1.1915611]
[1766658670237,0.88550768,839.43,838.25,1.1915611]
[1766658672441,0.88550768,839.43,838.26,1.1915611]
[1766658674240,0.88550768,839.42,838.26,1.1915611]
[1766658675341,0.88550768,839.42,838.11,1.78497909]
[1766658675342,0.88550768,839.42,838.27,1.1915611]
[1766658676243,0.88550768,839.41,838.27,1.1915611]
[1766658677343,0.88550768,839.41,838.28,1.1915611]
[1766658677847,0.88550768,839.4,838.28,1.1915611]
[1766658679245,0.88550768,839.39,838.29,1.1915611]
[1766658680353,0.88550768,839.38,838.3,1.1915611]
[1766658681352,0.88550768,839.37,838.31,1.1915611]
[1766658682453,0.88550768,839.4,838.36,1.1915611]
[1766658683253,0.88550768,839.39,838.38,1.1915611]
[1766658683754,0.88550768,839.41,838.4,1.1915611]
[1766658684354,0.88550768,839.39,838.41,1.1915611]
[1766658685354,0.88550768,839.38,838.43,1.1915611]
[1766658686252,0.88550768,839.37,838.43,1.1915611]
[1766658690256,0.88550768,839.37,837.68,2.96320121]
[1766658690257,0.88550768,839.37,838.44,1.1915611]
[1766658694259,0.88550768,839.36,838.44,1.1915611]
[1766658695457,0.88550768,839.37,838.44,1.1915611]
[1766658716477,0.88550768,839.36,838.44,1.1915611]
[1766658718475,0.88550768,839.36,838.45,1.1915611]
[1766658722485,0.88550768,839.35,838.45,1.1915611]
[1766658723385,0.88550768,839.34,838.45,1.1915611]
[1766658725482,0.88550768,839.34,838.46,1.1915611]
[1766658726385,0.88550768,839.33,838.46,1.1915611]
[1766658728381,0.88550768,839.33,838.47,1.1915611]
[1766658730288,0.88550768,839.33,838.46,1.1915611]
[1766658736897,1.18826526,839.48,838.46,1.1915611]
[1766658737097,0.8897495,839.33,838.46,1.1915611]
[1766658737797,0.8897495,839.33,838.47,1.1915611]
[1766658740798,0.8897495,839.31,838.45,1.1915611]
[1766658740996,0.8897495,839.31,837.71,2.96320121]
[1766658740997,0.8897495,839.25,838.39,1.1915611]
[1766658741199,0.20730265,839.68,838.38,1.1915611]
[1766658741200,0.8897495,839.26,838.38,1.1915611]
[1766658741698,0.8897495,839.26,838.37,1.1915611]
[1766658742195,0.8897495,839.26,838.36,1.1915611]
[1766658743201,0.8897495,839.27,838.36,1.1915611]
[1766658744099,0.8897495,839.27,838.35,1.1915611]
[1766658745404,0.8897495,839.28,838.35,1.1915611]
[1766658748103,0.8897495,839.28,838.34,1.1915611]
[1766658750108,0.8897495,839.29,838.34,1.1915611]
[1766658752009,0.20739346,839.28,838.34,1.1915611]
[1766658754110,0.20739346,839.28,838.33,1.1915611]
[1766658770222,0.20739346,839.28,838.34,1.1915611]
[1766658775227,1.09714296,839.28,838.34,1.1915611]
[1766658777132,1.09714296,839.28,838.35,1.1915611]
[1766658780129,0.8897495,839.27,838.35,1.1915611]
[1766658782131,0.8897495,839.27,837.6,2.96320121]
[1766658782132,0.8897495,839.27,838.36,1.1915611]
[1766658783138,0.8897495,839.26,838.36,1.1915611]
[1766658784132,0.8897495,839.25,838.37,1.1915611]
[1766658785136,0.8897495,839.24,838.38,1.1915611]
[1766658786239,0.8897495,839.24,838.39,1.1915611]
[1766658788740,0.8897495,839.27,838.42,1.1915611]
[1766658789340,1.09714296,839.28,838.41,1.1915611]
[1766658791345,0.20739346,839.28,838.41,1.1915611]
[1766658795248,0.20739346,839.28,838.4,1.1915611]
[1766658795745,0.20739346,839.28,838.42,1.1915611]
[1766658799147,0.8897495,839.32,838.43,1.1915611]
[1766658799350,0.8897495,839.33,838.42,1.1915611]
[1766658800046,0.8897495,839.33,838.43,1.1915611]
[1766658800250,0.8897495,839.34,838.43,1.1915611]
[1766658803354,0.8897495,839.34,838.42,1.1915611]
[1766658806257,0.8897495,839.35,838.42,1.1915611]
[1766658810958,0.8897495,839.36,838.43,1.1915611]
[1766658814261,0.8897495,839.37,838.43,1.1915611]
[1766658818459,0.8897495,839.37,838.44,1.1915611]
[1766658830376,0.8897495,839.37,838.45,1.1915611]
[1766658831172,0.8897495,839.36,838.45,1.1915611]
[1766658834279,0.8897495,839.36,838.46,1.1915611]
[1766658835376,0.8897495,839.35,838.46,1.1915611]
[1766658840182,0.8897495,839.35,838.47,1.1915611]
[1766658841088,0.8897495,839.35,838.46,1.1915611]
[1766658841288,0.8897495,839.35,838.47,1.1915611]
[1766658842285,0.8897495,839.34,838.47,1.1915611]
[1766658855098,1.18826526,839.49,838.47,1.1915611]
[1766658855295,0.89022959,839.34,838.48,1.1925175]
[1766658855796,1.18697279,839.49,838.48,1.1925175]
[1766658856094,0.89022959,839.34,838.48,1.1925175]
[1766658856499,1.18697279,839.49,838.48,1.1925175]
[1766658856699,0.89023433,839.33,838.48,1.1925175]
[1766658872808,1.18697279,839.48,838.48,1.1925175]
[1766658873006,0.89031623,839.33,838.48,1.1925175]
[1766658907530,0.89031623,839.28,838.42,1.1925175]
[1766658907826,0.89031623,839.25,838.4,1.1925175]
[1766658908129,0.89031623,839.22,838.36,1.1925175]
[1766658908324,0.89031623,839.24,838.34,1.1925175]
[1766658909131,0.89031623,839.21,838.31,1.1925175]
[1766658909330,0.89031623,839.21,838.28,1.1925175]
[1766658910332,0.89031623,839.22,838.27,1.1925175]
[1766658911433,0.89031623,839.19,838.21,1.1925175]
[1766658912137,0.89031623,839.09,838.11,1.1925175]
[1766658912432,0.89031623,839.11,838.09,1.1925175]
[1766658913532,0.89031623,839.12,838.07,1.1925175]
[1766658914336,0.89031623,839.14,838.06,1.1925175]
[1766658914836,0.89031623,839.11,838.03,1.1925175]
[1766658915337,0.89031623,839.12,838.02,1.1925175]
[1766658916337,0.89031623,839.13,838.01,1.1925175]
[1766658917133,0.89031623,839.13,837.85,1.78497909]
[1766658917134,0.89031623,839.13,838.0,1.1925175]
[1766658917436,0.89031623,839.14,838.0,1.1925175]
[1766658918034,0.89031623,839.13,837.98,1.1925175]
[1766658918434,0.89031623,839.14,837.97,1.1925175]
[1766658919540,0.89031623,839.15,837.97,1.1925175]
[1766658920541,0.89031623,839.15,837.96,1.1925175]
[1766658921239,0.89031623,839.16,837.96,1.1925175]
[1766658921443,0.89031623,839.16,837.95,1.1925175]
[1766658922340,0.89031623,839.17,837.95,1.1925175]
[1766658923445,0.89031623,839.17,837.94,1.1925175]
[1766658924343,0.89031623,839.17,837.79,1.78497909]
[1766658924344,0.89031623,839.17,837.93,1.1925175]
[1766658924544,0.89031623,839.06,837.83,1.1925175]
[1766658924747,0.89031623,839.06,837.67,1.78497909]
[1766658924748,0.89031623,839.05,837.82,1.1925175]
[1766658924944,0.89031623,838.97,837.73,1.1925175]
[1766658925443,0.89031623,838.95,837.68,1.1925175]
[1766658925648,0.89031623,838.94,837.68,1.1925175]
[1766658926046,0.89031623,838.91,837.64,1.1925175]
[1766658926245,0.89031623,838.89,837.62,1.1925175]
[1766658926449,0.89031623,838.86,837.55,1.1925175]
[1766658926646,0.20735762,839.5,837.54,1.1925175]
[1766658926647,0.89031623,838.85,837.54,1.1925175]
[1766658926850,0.89031623,838.83,837.52,1.1925175]
[1766658927051,0.89031623,838.82,837.51,1.1925175]
[1766658927251,0.89031623,838.8,837.49,1.1925175]
[1766658927548,0.89031623,838.73,837.35,1.1925175]
[1766658928248,0.89031623,838.67,837.29,1.1925175]
[1766658928448,0.20735762,839.5,835.76,5.92640243]
[1766658928449,0.89031623,838.7,837.26,1.1925175]
[1766658929253,0.89031623,838.71,837.26,1.1925175]
[1766658929450,0.89031623,838.73,837.22,1.1925175]
[1766658930153,0.89031623,838.68,837.18,1.1925175]
[1766658930354,0.89031623,838.55,836.96,1.1925175]
[1766658931350,0.89031623,838.57,836.91,1.1925175]
[1766658931555,0.89031623,838.57,836.93,1.1925175]
[1766658931853,0.89031623,838.65,837.0,1.1925175]
[1766658932354,0.89031623,838.66,836.96,1.1925175]
[1766658933353,0.89031623,838.67,836.93,1.1925175]
[1766658934357,0.89031623,838.68,836.9,1.1925175]
[1766658935555,0.89031623,838.69,836.88,1.1925175]
[1766658935753,0.89031623,838.67,836.86,1.1925175]
[1766658935957,0.89031623,838.58,836.77,1.1925175]
[1766658936157,0.89031623,838.52,836.71,1.1925175]
[1766658936355,0.89031623,838.5,836.64,1.1925175]
[1766658937359,0.89031623,838.45,836.55,1.1925175]
[1766658938360,0.89031623,838.46,836.52,1.1925175]
[1766658939255,0.89031623,838.41,836.47,1.1925175]
[1766658939461,0.89031623,838.42,836.44,1.1925175]
[1766658939656,0.89031623,838.43,836.45,1.1925175]
[1766658939858,0.89031623,838.45,836.47,1.1925175]
[1766658940256,0.89031623,838.47,836.49,1.1925175]
[1766658940459,0.89031623,838.47,836.23,0.20769176]
[1766658940460,0.89031623,838.47,836.46,1.1925175]
[1766658941463,0.89031623,838.46,836.42,1.1925175]
[1766658942459,0.89031623,838.46,836.4,1.1925175]
[1766658942966,0.89031623,838.48,836.42,1.1925175]
[1766658943166,0.89031623,838.55,836.5,1.1925175]
[1766658943367,0.89031623,838.56,836.5,1.1925175]
[1766658943566,0.89031623,838.63,836.57,1.1925175]
[1766658943768,0.89031623,838.65,836.59,1.1925175]
[1766658944168,0.89031623,838.65,836.6,1.1925175]
[1766658944368,0.89031623,838.65,836.59,1.1925175]
[1766658945365,0.89031623,838.72,836.66,1.1925175]
[1766658946165,0.89031623,838.71,836.66,1.1925175]
[1766658946364,0.89031623,838.71,836.67,1.1925175]
[1766658947068,0.89031623,838.72,836.68,1.1925175]
[1766658947469,0.89031623,838.71,836.69,1.1925175]
[1766658947670,0.89031623,838.76,836.73,1.1925175]
[1766658948071,0.66613475,838.75,836.59,1.78497909]
[1766658948372,0.66613475,838.74,836.62,1.78497909]
[1766658948669,0.66613475,838.73,836.62,1.78497909]
[1766658948872,0.66613475,838.72,836.62,1.78497909]
[1766658949168,0.66613475,838.71,836.6,1.78497909]
[1766658949472,0.66613475,838.7,836.61,1.78497909]
[1766658949668,0.66613475,838.69,836.61,1.78497909]
[1766658949872,0.66613475,838.68,836.61,1.78497909]
[1766658950166,0.66613475,838.67,836.59,1.78497909]
[1766658950367,0.66613475,838.66,836.61,1.78497909]
[1766658950569,0.66613475,838.65,836.61,1.78497909]
[1766658950772,0.66613475,838.64,836.61,1.78497909]
[1766658950972,0.66613475,838.63,836.61,1.78497909]
[1766658951172,0.66613475,838.62,836.61,1.78497909]
[1766658951374,0.66613475,838.61,836.62,1.78497909]
[1766658951570,0.66613475,838.6,836.61,1.78497909]
[1766658951773,0.66613475,838.59,836.61,1.78497909]
[1766658951973,0.66613475,838.58,836.61,1.78497909]
[1766658952174,0.66613475,838.57,836.62,1.78497909]
[1766658952473,0.66613475,838.56,836.63,1.78497909]
[1766658952674,0.66613475,838.55,836.63,1.78497909]
[1766658952869,0.66613475,838.54,836.63,1.78497909]
[1766658953171,0.66613475,838.53,836.64,1.78497909]
[1766658953375,0.66613475,838.52,836.65,1.78497909]
[1766658953571,0.66613475,838.51,836.65,1.78497909]
[1766658953769,0.66613475,838.5,836.65,1.78497909]
[1766658953972,0.66613475,838.49,836.65,1.78497909]
[1766658954173,0.66613475,838.48,836.65,1.78497909]
[1766658954369,0.66613475,838.47,836.67,1.78497909]
[1766658954670,0.66613475,838.46,836.67,1.78497909]
[1766658954868,0.66613475,838.45,836.67,1.78497909]
[1766658955072,0.66613475,838.44,836.67,1.78497909]
[1766658955269,0.89031623,838.64,836.67,1.78497909]
[1766658955270,0.66613475,838.43,836.67,1.78497909]
[1766658955469,0.66613475,838.42,836.68,1.78497909]
[1766658955674,0.66613475,838.41,836.68,1.78497909]
[1766658955974,0.66613475,838.4,836.68,1.78497909]
[1766658956270,0.66613475,838.39,836.69,1.78497909]
[1766658956470,0.66613475,838.38,836.7,1.78497909]
[1766658956670,0.66613475,838.37,836.7,1.78497909]
[1766658956871,0.89031623,838.64,836.72,1.78497909]
[1766658957175,0.66860779,838.63,836.72,1.78497909]
[1766658957471,1.55892402,838.63,836.74,1.78497909]
[1766658957671,0.66860779,838.62,836.74,1.78497909]
[1766658957974,0.66881986,838.61,836.74,1.78497909]
[1766658958169,0.66881986,838.6,836.74,1.78497909]
[1766658958474,0.66881986,838.59,836.75,1.78497909]
[1766658958672,0.66881986,838.58,836.75,1.78497909]
[1766658958871,0.66881986,838.57,836.75,1.78497909]
[1766658959176,0.66881986,838.56,836.76,1.78497909]
[1766658959471,0.66881986,838.55,836.77,1.78497909]
[1766658959676,0.66881986,838.54,836.77,1.78497909]
[1766658959875,0.66881986,838.53,836.77,1.78497909]
[1766658960076,0.66881986,838.52,836.77,1.78497909]
[1766658960278,0.66881986,838.51,836.77,1.78497909]
[1766658960475,0.66881986,838.5,836.78,1.78497909]
[1766658960674,0.66881986,838.49,836.78,1.78497909]
[1766658960874,0.66881986,838.48,836.71,1.78497909]
[1766658961074,0.66881986,838.47,836.71,1.78497909]
[1766658961381,0.66881986,838.46,836.73,1.78497909]
[1766658961577,0.66881986,838.45,836.71,1.78497909]
[1766658961775,0.87815545,838.43,836.63,1.78497909]
[1766658961973,1.54697531,838.43,836.63,1.78497909]
[1766658962175,0.66881986,838.42,836.63,1.78497909]
[1766658962374,1.54697531,838.42,836.65,1.78497909]
[1766658962679,0.66881986,838.41,836.65,1.78497909]
[1766658962875,0.66881986,838.4,836.65,1.78497909]
[1766658963178,0.66881986,838.39,836.65,1.78497909]
[1766658963477,0.66881986,838.38,836.67,1.78497909]
[1766658963778,0.66881986,838.37,836.67,1.78497909]
[1766658964078,0.66881986,838.36,836.67,1.78497909]
[1766658964378,0.66881986,838.35,836.69,1.78497909]
[1766658964579,0.66881986,838.34,836.69,1.78497909]
[1766658964779,0.66881986,838.33,836.69,1.78497909]
[1766658964980,0.66881986,838.32,836.69,1.78497909]
[1766658965178,0.66881986,838.31,836.7,1.78497909]
[1766658965378,0.66881986,838.3,836.72,1.78497909]
[1766658965679,0.66881986,838.29,836.72,1.78497909]
[1766658965879,0.66881986,838.28,836.72,1.78497909]
[1766658966079,0.66881986,838.27,836.72,1.78497909]
[1766658966274,0.66881986,838.26,836.73,1.78497909]
[1766658966479,0.66881986,838.25,836.75,1.78497909]
[1766658966676,0.66881986,838.24,836.75,1.78497909]
[1766658966876,0.66881986,838.23,836.75,1.78497909]
[1766658967074,0.66881986,838.22,836.76,1.78497909]
[1766658967380,0.66881986,838.21,836.79,1.78497909]
[1766658967575,0.66881986,838.2,836.79,1.78497909]
[1766658967778,0.66881986,838.19,836.79,1.78497909]
[1766658967979,0.66881986,838.18,836.79,1.78497909]
[1766658968179,0.66881986,838.17,836.79,1.78497909]
[1766658968480,0.66881986,838.16,836.83,1.78497909]
[1766658968674,0.66881986,838.15,836.83,1.78497909]
[1766658968973,0.66881986,838.14,836.83,1.78497909]
[1766658969173,0.66881986,838.13,836.83,1.78497909]
[1766658969376,0.66881986,838.12,836.88,1.78497909]
[1766658969576,0.66881986,838.11,836.88,1.78497909]
[1766658969777,0.66881986,838.1,836.88,1.78497909]
[1766658969977,0.66881986,838.09,836.88,1.78497909]
[1766658970177,0.66881986,838.08,836.9,1.78497909]
[1766658970381,0.66881986,838.07,836.93,1.78497909]
[1766658970677,0.66881986,838.06,836.93,1.78497909]
[1766658970875,0.66881986,838.05,836.93,1.78497909]
[1766658971079,0.66881986,838.04,836.93,1.78497909]
[1766658971276,0.66881986,838.03,836.94,1.78497909]
[1766658971575,0.66881986,838.02,836.96,1.78497909]
[1766658971778,0.66881986,838.01,836.96,1.78497909]
[1766658971980,0.87815545,838.28,836.96,1.78497909]
[1766658972179,0.6743375,838.27,836.96,1.78497909]
[1766658972378,0.6743375,838.26,836.97,1.78497909]
[1766658972578,0.6743375,838.25,836.97,1.78497909]
[1766658972784,0.6743375,838.24,836.97,1.78497909]
[1766658972985,0.6743375,838.23,836.97,1.78497909]
[1766658973184,0.6743375,838.22,837.05,1.78497909]
[1766658973384,0.6743375,838.21,837.06,1.78497909]
[1766658973582,0.6743375,838.2,837.06,1.78497909]
[1766658973781,0.87815545,838.35,837.06,1.78497909]
[1766658973782,0.6743375,838.19,837.06,1.78497909]
[1766658974082,0.6743375,838.18,837.06,1.78497909]
[1766658974280,0.6743375,838.17,837.06,1.78497909]
[1766658974486,0.6743375,838.16,837.07,1.78497909]
[1766658974684,0.6743375,838.15,837.07,1.78497909]
[1766658974882,0.6743375,838.14,837.07,1.78497909]
[1766658975086,0.6743375,838.13,837.08,1.78497909]
[1766658975288,0.6743375,838.12,837.08,1.78497909]
[1766658975585,0.6743375,838.11,837.08,1.78497909]
[1766658975787,0.6743375,838.1,837.08,1.78497909]
[1766658975982,0.6743375,838.09,837.08,1.78497909]
[1766658976186,0.87815545,838.36,837.08,1.78497909]
[1766658976486,0.6746971,838.35,837.09,1.78497909]
[1766658976786,0.6746971,838.34,837.09,1.78497909]
[1766658977083,0.6746971,838.33,837.09,1.78497909]
[1766658977283,0.6746971,838.32,837.09,1.78497909]
[1766658977486,0.6746971,838.31,837.09,1.78497909]
[1766658977682,0.6746971,838.3,837.09,1.78497909]
[1766658977986,0.6746971,838.29,837.15,1.78497909]
[1766658978184,0.87815545,838.45,837.32,1.1894088]
[1766658978388,0.87815545,838.46,837.32,1.1894088]
[1766658978888,0.87815545,838.48,837.35,1.1894088]
[1766658979089,0.87815545,838.49,837.35,1.1894088]
[1766658979289,0.87815545,838.52,837.38,1.1894088]
[1766658979489,0.87815545,838.53,837.39,1.1894088]
[1766658979686,0.87815545,838.56,837.42,1.1894088]
[1766658980090,0.87815545,838.57,837.42,1.1894088]
[1766658980285,0.87815545,838.59,837.44,1.1894088]
[1766658980790,0.87815545,838.66,837.51,1.1894088]
[1766658980989,1.78239789,838.96,836.68,2.96320121]
[1766658980990,0.87815545,838.73,837.58,1.1894088]
[1766658981290,0.87815545,838.74,837.57,1.1894088]
[1766658982286,0.87815545,838.75,837.56,1.1894088]
[1766658983192,0.87815545,838.79,837.58,1.1894088]
[1766658983390,0.87815545,838.79,837.59,1.1894088]
[1766658984092,0.20735762,839.5,837.58,1.1894088]
[1766658984093,0.87815545,838.8,837.58,1.1894088]
[1766658984388,0.87815545,838.79,837.59,1.1894088]
[1766658984792,0.87815545,838.79,836.83,2.96320121]
[1766658984793,0.87815545,838.85,837.65,1.1894088]
[1766658985194,0.87815545,838.86,837.63,1.1894088]
[1766658985395,0.87815545,838.86,837.64,1.1894088]
[1766658986094,0.87815545,838.87,837.63,1.1894088]
[1766658986393,0.87815545,838.86,837.63,1.1894088]
[1766658987094,0.87815545,838.87,837.62,1.1894088]
[1766658987393,0.87815545,838.86,837.63,1.1894088]
[1766658988090,0.87815545,838.96,837.7,1.1894088]
[1766658988292,0.87815545,838.97,837.71,1.1894088]
[1766658988494,0.87815545,838.98,837.73,1.1894088]
[1766658988694,0.87815545,839.01,837.76,1.1894088]
[1766658989191,0.87815545,839.03,837.75,1.1894088]
[1766658989505,0.87815545,839.03,837.74,1.1894088]
[1766658990293,0.87815545,839.05,837.73,1.1894088]
[1766658990597,0.87815545,839.03,837.71,1.1894088]
[1766658991192,0.87815545,839.04,837.7,1.1894088]
[1766658992098,0.87815545,839.05,837.69,1.1894088]
[1766658992294,0.87815545,839.05,837.68,1.1894088]
[1766658993097,0.87815545,839.03,837.66,1.1894088]
[1766658993298,0.87815545,839.04,837.66,1.1894088]
[1766658993493,0.87815545,839.04,837.65,1.1894088]
[1766658994095,0.87815545,839.05,837.65,1.1894088]
[1766658995204,0.87815545,839.05,837.64,1.1894088]
[1766658995503,0.87815545,839.05,837.63,1.1894088]
[1766658996100,0.87815545,839.06,837.63,1.1894088]
[1766658996297,0.87815545,839.06,837.62,1.1894088]
[1766658998301,0.87815545,839.07,837.61,1.1894088]
[1766658999098,0.87815545,838.92,837.46,1.1894088]
[1766658999300,0.87815545,838.93,837.46,1.1894088]
[1766659000204,0.87815545,838.92,837.46,1.1894088]
[1766659000405,0.87815545,838.93,837.46,1.1894088]
[1766659000604,0.87815545,838.93,836.77,0.01175745]
[1766659000605,0.87815545,838.93,837.49,1.1894088]
[1766659000901,0.87815545,838.96,837.5,1.1894088]
[1766659001106,0.87815545,838.97,837.51,1.1894088]
[1766659001301,0.87815545,839.06,837.6,1.1894088]
[1766659002407,0.87815545,839.08,837.61,1.1894088]
[1766659003308,0.87815545,839.08,837.6,1.1894088]
[1766659006409,0.87815545,839.08,837.59,1.1894088]
[1766659007110,0.87815545,839.08,837.6,1.1894088]
[1766659008307,0.87815545,839.08,837.61,1.1894088]
[1766659010111,0.87815545,839.07,837.62,1.1894088]
[1766659011116,0.87815545,839.06,837.62,1.1894088]
[1766659011316,0.20750599,838.88,837.63,1.1894088]
[1766659013116,0.20750599,838.88,837.64,1.1894088]
[1766659014117,0.20750599,838.88,837.65,1.1894088]
[1766659015117,0.20750599,838.88,837.66,1.1894088]
[1766659016217,0.20750599,838.88,837.68,1.1894088]
[1766659017118,0.20750599,838.88,837.69,1.1894088]
[1766659017618,0.20750599,838.88,837.68,1.1894088]
[1766659018418,0.20750599,838.88,837.7,1.1894088]
[1766659019122,0.20750599,838.88,837.71,1.1894088]
[1766659020222,0.20750599,838.88,837.73,1.1894088]
[1766659021124,0.20750599,838.88,837.75,1.1894088]
[1766659021320,0.88498727,838.8,837.62,1.1894088]